[Event "*** Titled Tuesday Blitz"]
[Site "Chess.com"]
[Date "2020.05.12"]
[Round "3"]
[White "ChessTraining77"]
[Black "Camels1981"]
[Result "1-0"]
[WhiteElo "2526"]
[BlackElo "2305"]
[TimeControl "180+1"]
[EndTime "10:25:02 PDT"]
[Termination "ChessTraining77 won by resignation"]

1. e4 {[%clk 0:03:00.9]} 1... c5 {[%clk 0:02:59.4]} 2. Nf3 {[%clk 0:02:59.8]}
2... d6 {[%clk 0:02:59.4]} 3. Bb5+ {[%clk 0:02:57.1]} 3... Bd7 {[%clk
0:02:58.7]} 4. Bxd7+ {[%clk 0:02:56.3]} 4... Qxd7 {[%clk 0:02:59.6]} 5. c4
{[%clk 0:02:56.4]} 5... g6 {[%clk 0:02:59.8]} 6. Nc3 {[%clk 0:02:56]} 6... Bg7
{[%clk 0:02:59.2]} 7. d4 {[%clk 0:02:55.2]} 7... cxd4 {[%clk 0:02:59.4]} 8. Nxd4
{[%clk 0:02:55]} 8... Nc6 {[%clk 0:03:00.3]} 9. Be3 {[%clk 0:02:54.7]} 9... Nf6
{[%clk 0:03:00.4]} 10. f3 {[%clk 0:02:54.4]} 10... O-O {[%clk 0:03:00.3]} 11.
O-O {[%clk 0:02:54.4]} 11... Rac8 {[%clk 0:03:00.6]} 12. b3 {[%clk 0:02:53.8]}
12... Rfd8 {[%clk 0:02:59.9]} 13. Qd2 {[%clk 0:02:52.3]} 13... a6 {[%clk
0:02:59.2]} 14. a4 {[%clk 0:02:50.9]} 14... Qc7 {[%clk 0:02:51.2]} 15. Rab1
{[%clk 0:02:48]} 15... Qb8 {[%clk 0:02:51.6]} 16. Rfd1 {[%clk 0:02:45.9]} 16...
e6 {[%clk 0:02:49.4]} 17. Nde2 {[%clk 0:02:42.7]} 17... Ne5 {[%clk 0:02:47]} 18.
Bg5 {[%clk 0:02:39.1]} 18... h6 {[%clk 0:02:30.4]} 19. Bxh6 {[%clk 0:02:36.5]}
19... Bxh6 {[%clk 0:02:26.3]} 20. Qxh6 {[%clk 0:02:35]} 20... b5 {[%clk
0:02:27.2]} 21. axb5 {[%clk 0:02:33.6]} 21... axb5 {[%clk 0:02:27.3]} 22. cxb5
{[%clk 0:02:00.3]} 22... d5 {[%clk 0:02:20.6]} 23. exd5 {[%clk 0:01:59.7]} 23...
exd5 {[%clk 0:02:21.5]} 24. Qf4 {[%clk 0:01:54.5]} 24... Nh5 {[%clk 0:02:20]}
25. Qd4 {[%clk 0:01:53.5]} 25... Ng7 {[%clk 0:02:12.1]} 26. Nxd5 {[%clk
0:01:47.4]} 26... Nf5 {[%clk 0:02:12.1]} 27. Qe4 {[%clk 0:01:43.1]} 27... Qxb5
{[%clk 0:01:56.1]} 28. Qxe5 {[%clk 0:01:38.9]} 28... Qc5+ {[%clk 0:01:56.6]} 29.
Kh1 {[%clk 0:01:37.9]} 1-0

[Event "*** Titled Tuesday Blitz"]
[Site "Chess.com"]
[Date "2020.05.12"]
[Round "3"]
[White "Shushik"]
[Black "calin_dragomirescu"]
[Result "1/2-1/2"]
[WhiteElo "2081"]
[BlackElo "2315"]
[TimeControl "180+1"]
[EndTime "10:25:04 PDT"]
[Termination "Game drawn by repetition"]

1. e4 {[%clk 0:02:59.7]} 1... g6 {[%clk 0:03:00]} 2. d4 {[%clk 0:02:59.4]} 2...
Bg7 {[%clk 0:03:00.3]} 3. Nc3 {[%clk 0:02:59.3]} 3... d6 {[%clk 0:03:00.7]} 4.
f4 {[%clk 0:02:59.3]} 4... Nf6 {[%clk 0:03:00.2]} 5. Nf3 {[%clk 0:02:59.1]} 5...
O-O {[%clk 0:03:00]} 6. Be2 {[%clk 0:02:59.3]} 6... c5 {[%clk 0:02:58.5]} 7. e5
{[%clk 0:02:54.7]} 7... Nfd7 {[%clk 0:02:55.4]} 8. Be3 {[%clk 0:02:44.1]} 8...
cxd4 {[%clk 0:02:54.3]} 9. Bxd4 {[%clk 0:02:42.2]} 9... Nc6 {[%clk 0:02:53.8]}
10. exd6 {[%clk 0:02:34.5]} 10... Nxd4 {[%clk 0:02:53.6]} 11. Nxd4 {[%clk
0:02:33.9]} 11... exd6 {[%clk 0:02:52.4]} 12. Nb3 {[%clk 0:02:23.9]} 12... Qb6
{[%clk 0:02:44.4]} 13. Nd5 {[%clk 0:02:17.9]} 13... Qd8 {[%clk 0:02:36.6]} 14.
c3 {[%clk 0:02:16.9]} 14... Nb6 {[%clk 0:02:34.4]} 15. O-O {[%clk 0:02:15.3]}
15... Nxd5 {[%clk 0:02:33.4]} 16. Qxd5 {[%clk 0:02:14.9]} 16... Qb6+ {[%clk
0:02:32.3]} 17. Kh1 {[%clk 0:02:13.4]} 17... Be6 {[%clk 0:02:32]} 18. Qd2 {[%clk
0:02:08.4]} 18... Bxb3 {[%clk 0:02:25.4]} 19. axb3 {[%clk 0:02:07.6]} 19... Qxb3
{[%clk 0:02:25.5]} 20. Bf3 {[%clk 0:02:01.4]} 20... Qb6 {[%clk 0:02:12.5]} 21.
Bd5 {[%clk 0:01:55]} 21... a6 {[%clk 0:02:09.6]} 22. Rfe1 {[%clk 0:01:50.4]}
22... Rae8 {[%clk 0:02:05.8]} 23. Bxf7+ {[%clk 0:01:15.6]} 23... Kxf7 {[%clk
0:01:57.5]} 24. Qd5+ {[%clk 0:01:15.1]} 24... Kf6 {[%clk 0:01:57.9]} 25. Qg5+
{[%clk 0:01:13.7]} 25... Kf7 {[%clk 0:01:56.9]} 26. Qd5+ {[%clk 0:01:13.8]}
26... Kf6 {[%clk 0:01:57.3]} 27. Qg5+ {[%clk 0:01:13.8]} 27... Kf7 {[%clk
0:01:57.5]} 28. Qd5+ {[%clk 0:01:14]} 1/2-1/2

[Event "*** Titled Tuesday Blitz"]
[Site "Chess.com"]
[Date "2020.05.12"]
[Round "3"]
[White "WonderChampion"]
[Black "RamonManon0g"]
[Result "1-0"]
[WhiteElo "1876"]
[BlackElo "2224"]
[TimeControl "180+1"]
[EndTime "10:25:07 PDT"]
[Termination "WonderChampion won by resignation"]

1. e4 {[%clk 0:03:00.9]} 1... c5 {[%clk 0:03:00]} 2. Nf3 {[%clk 0:03:01]} 2...
d6 {[%clk 0:03:00.6]} 3. Bb5+ {[%clk 0:03:00.3]} 3... Bd7 {[%clk 0:03:01.5]} 4.
Bxd7+ {[%clk 0:03:00.1]} 4... Qxd7 {[%clk 0:03:01.8]} 5. c4 {[%clk 0:03:00]}
5... Nc6 {[%clk 0:03:02.2]} 6. Nc3 {[%clk 0:02:58.2]} 6... Nf6 {[%clk
0:03:02.6]} 7. O-O {[%clk 0:02:57.8]} 7... e5 {[%clk 0:03:01.9]} 8. d3 {[%clk
0:02:52.3]} 8... Be7 {[%clk 0:03:02.1]} 9. Bg5 {[%clk 0:02:50.8]} 9... O-O
{[%clk 0:03:02.5]} 10. Re1 {[%clk 0:02:49.4]} 10... h6 {[%clk 0:03:02.5]} 11.
Bxf6 {[%clk 0:02:47.7]} 11... Bxf6 {[%clk 0:03:02.6]} 12. Nd5 {[%clk 0:02:47.9]}
12... Bd8 {[%clk 0:03:02.4]} 13. Qd2 {[%clk 0:02:45.4]} 13... Nd4 {[%clk
0:03:02.5]} 14. Nxd4 {[%clk 0:02:42.8]} 14... cxd4 {[%clk 0:03:03.4]} 15. Rac1
{[%clk 0:02:40.8]} 15... f5 {[%clk 0:03:03]} 16. f3 {[%clk 0:02:36.9]} 16... Bg5
{[%clk 0:03:00.2]} 17. Qe2 {[%clk 0:02:11]} 17... Bxc1 {[%clk 0:02:59.8]} 18.
Rxc1 {[%clk 0:02:11.6]} 18... fxe4 {[%clk 0:02:59.9]} 19. fxe4 {[%clk 0:02:11]}
19... Rf7 {[%clk 0:02:55.8]} 20. Qh5 {[%clk 0:02:10.5]} 20... Raf8 {[%clk
0:02:54.7]} 21. h3 {[%clk 0:02:08.9]} 21... Rf2 {[%clk 0:02:45]} 22. Rb1 {[%clk
0:02:06.5]} 22... Qf7 {[%clk 0:02:40.6]} 23. Qd1 {[%clk 0:01:59.7]} 23... Qg6
{[%clk 0:02:37.7]} 24. Ne7+ {[%clk 0:01:55.1]} 24... Kh7 {[%clk 0:02:35.2]} 25.
Nxg6 {[%clk 0:01:55.6]} 25... Kxg6 {[%clk 0:02:36.1]} 26. Qg4+ {[%clk
0:01:55.4]} 26... Kh7 {[%clk 0:02:36.1]} 27. Qd7 {[%clk 0:01:45.5]} 27... R8f6
{[%clk 0:02:31.4]} 28. a3 {[%clk 0:01:39]} 28... Rd2 {[%clk 0:02:30.2]} 29. Qg4
{[%clk 0:01:32.4]} 29... Rff2 {[%clk 0:02:23]} 30. b4 {[%clk 0:01:27.4]} 30...
g6 {[%clk 0:02:17.9]} 31. Rf1 {[%clk 0:01:23.3]} 31... h5 {[%clk 0:02:09.1]} 32.
Qd7+ {[%clk 0:01:21]} 1-0

[Event "*** Titled Tuesday Blitz"]
[Site "Chess.com"]
[Date "2020.05.12"]
[Round "3"]
[White "SPEEDSKATER"]
[Black "DanielRensch"]
[Result "1-0"]
[WhiteElo "2765"]
[BlackElo "2494"]
[TimeControl "180+1"]
[EndTime "10:25:09 PDT"]
[Termination "SPEEDSKATER won by resignation"]

1. d4 {[%clk 0:03:00.9]} 1... Nf6 {[%clk 0:02:59.7]} 2. c4 {[%clk 0:03:00.2]}
2... e6 {[%clk 0:02:59.7]} 3. Nf3 {[%clk 0:02:59.8]} 3... c5 {[%clk 0:02:59.1]}
4. d5 {[%clk 0:02:59.8]} 4... b5 {[%clk 0:02:59.4]} 5. Bg5 {[%clk 0:02:59.3]}
5... b4 {[%clk 0:02:58.7]} 6. e4 {[%clk 0:02:58.6]} 6... d6 {[%clk 0:02:56.6]}
7. Nbd2 {[%clk 0:02:57.2]} 7... Be7 {[%clk 0:02:56.3]} 8. Bf4 {[%clk 0:02:55.9]}
8... O-O {[%clk 0:02:54.9]} 9. Bd3 {[%clk 0:02:52.9]} 9... e5 {[%clk 0:02:55.1]}
10. Bg3 {[%clk 0:02:51.9]} 10... Nh5 {[%clk 0:02:54.7]} 11. a3 {[%clk
0:02:50.9]} 11... a5 {[%clk 0:02:52.3]} 12. O-O {[%clk 0:02:48.4]} 12... Na6
{[%clk 0:02:50]} 13. Nxe5 {[%clk 0:02:46.5]} 13... Nxg3 {[%clk 0:02:36]} 14. Nc6
{[%clk 0:02:45.6]} 14... Qe8 {[%clk 0:02:36]} 15. hxg3 {[%clk 0:02:42.6]} 15...
Bf6 {[%clk 0:02:35.6]} 16. e5 {[%clk 0:02:37.7]} 16... Bxe5 {[%clk 0:02:34.2]}
17. Re1 {[%clk 0:02:36.9]} 17... Bd7 {[%clk 0:02:27.1]} 18. Nxe5 {[%clk
0:02:31.4]} 18... dxe5 {[%clk 0:02:26.6]} 19. f4 {[%clk 0:02:30.6]} 19... f6
{[%clk 0:02:20.9]} 20. fxe5 {[%clk 0:02:30.3]} 20... fxe5 {[%clk 0:02:21.8]} 21.
Nf3 {[%clk 0:02:30.8]} 21... Bg4 {[%clk 0:02:20.7]} 22. Bxh7+ {[%clk 0:02:30.1]}
22... Kh8 {[%clk 0:02:13.8]} 23. Be4 {[%clk 0:02:25.8]} 23... Rd8 {[%clk
0:02:06.7]} 24. Kf2 {[%clk 0:02:21]} 24... Bxf3 {[%clk 0:02:02.6]} 25. gxf3
{[%clk 0:02:19.5]} 25... Rf6 {[%clk 0:02:00.6]} 26. Rh1+ {[%clk 0:02:18.5]}
26... Kg8 {[%clk 0:02:00.4]} 27. axb4 {[%clk 0:02:11.6]} 27... cxb4 {[%clk
0:01:58.9]} 28. Rxa5 {[%clk 0:02:10.7]} 28... Qe7 {[%clk 0:01:54.2]} 29. d6
{[%clk 0:01:57.4]} 29... Rdxd6 {[%clk 0:01:49]} 30. Bd5+ {[%clk 0:01:56.9]}
30... Rf7 {[%clk 0:01:33.9]} 31. Bxf7+ {[%clk 0:01:55.3]} 31... Kxf7 {[%clk
0:01:33]} 32. Rd5 {[%clk 0:01:55.6]} 1-0

[Event "*** Titled Tuesday Blitz"]
[Site "Chess.com"]
[Date "2020.05.12"]
[Round "3"]
[White "dbrankovic68"]
[Black "Lawliet64"]
[Result "1-0"]
[WhiteElo "2409"]
[BlackElo "2162"]
[TimeControl "180+1"]
[EndTime "10:25:09 PDT"]
[Termination "dbrankovic68 won by resignation"]

1. e4 {[%clk 0:03:00.9]} 1... e6 {[%clk 0:02:52.6]} 2. d3 {[%clk 0:02:58.9]}
2... c5 {[%clk 0:02:51]} 3. Nd2 {[%clk 0:02:58.9]} 3... d5 {[%clk 0:02:51.1]} 4.
Ngf3 {[%clk 0:02:58.7]} 4... Nc6 {[%clk 0:02:51.6]} 5. g3 {[%clk 0:02:58.6]}
5... Be7 {[%clk 0:02:51.8]} 6. Bg2 {[%clk 0:02:58.7]} 6... Nf6 {[%clk
0:02:52.2]} 7. O-O {[%clk 0:02:59.1]} 7... O-O {[%clk 0:02:51.4]} 8. Re1 {[%clk
0:02:59.1]} 8... Rb8 {[%clk 0:02:48.9]} 9. h4 {[%clk 0:02:52.7]} 9... dxe4
{[%clk 0:02:47.9]} 10. dxe4 {[%clk 0:02:52.1]} 10... b6 {[%clk 0:02:45.2]} 11.
e5 {[%clk 0:02:47.2]} 11... Nd5 {[%clk 0:02:44.4]} 12. c3 {[%clk 0:02:45.7]}
12... Bb7 {[%clk 0:02:44.4]} 13. Qa4 {[%clk 0:02:38.7]} 13... Qc7 {[%clk
0:02:42.7]} 14. Qg4 {[%clk 0:02:36.7]} 14... Rfd8 {[%clk 0:02:41.2]} 15. h5
{[%clk 0:02:33.8]} 15... Bf8 {[%clk 0:02:40.9]} 16. Nc4 {[%clk 0:02:26]} 16...
b5 {[%clk 0:02:39.2]} 17. Ncd2 {[%clk 0:02:18.6]} 17... a5 {[%clk 0:02:33.5]}
18. Ne4 {[%clk 0:02:18.4]} 18... c4 {[%clk 0:02:32]} 19. Nf6+ {[%clk 0:02:14.6]}
19... Kh8 {[%clk 0:02:26.6]} 20. Nxd5 {[%clk 0:02:08.9]} 20... Rxd5 {[%clk
0:02:08.5]} 21. h6 {[%clk 0:02:08.6]} 21... Nxe5 {[%clk 0:01:59.7]} 22. Nxe5
{[%clk 0:02:05.4]} 22... Rxe5 {[%clk 0:02:00.2]} 23. Bf4 {[%clk 0:01:52.1]}
23... Rxe1+ {[%clk 0:01:57.6]} 24. Rxe1 {[%clk 0:01:50.8]} 24... Qc8 {[%clk
0:01:40.8]} 25. Be5 {[%clk 0:01:35.6]} 25... f6 {[%clk 0:01:37.2]} 26. Bxb8
{[%clk 0:01:31.6]} 26... Qxb8 {[%clk 0:01:36.7]} 27. Qxe6 {[%clk 0:01:29.7]}
27... Bxg2 {[%clk 0:01:36.5]} 28. Kxg2 {[%clk 0:01:29]} 1-0

[Event "*** Titled Tuesday Blitz"]
[Site "Chess.com"]
[Date "2020.05.12"]
[Round "3"]
[White "Sergey85Rodchenkov"]
[Black "Shivagami"]
[Result "1-0"]
[WhiteElo "2498"]
[BlackElo "2210"]
[TimeControl "180+1"]
[EndTime "10:25:12 PDT"]
[Termination "Sergey85Rodchenkov won by resignation"]

1. e4 {[%clk 0:03:00.9]} 1... c5 {[%clk 0:02:59.6]} 2. Nf3 {[%clk 0:03:00.7]}
2... d6 {[%clk 0:02:59.4]} 3. d4 {[%clk 0:03:01.1]} 3... cxd4 {[%clk 0:02:58.2]}
4. Nxd4 {[%clk 0:03:02]} 4... Nf6 {[%clk 0:02:57.4]} 5. Nc3 {[%clk 0:03:02.3]}
5... a6 {[%clk 0:02:55.7]} 6. Be2 {[%clk 0:03:01.9]} 6... e5 {[%clk 0:02:54.6]}
7. Nb3 {[%clk 0:03:01.8]} 7... Be6 {[%clk 0:02:54.7]} 8. O-O {[%clk 0:03:01.8]}
8... Be7 {[%clk 0:02:55.1]} 9. Kh1 {[%clk 0:03:01.5]} 9... O-O {[%clk
0:02:54.4]} 10. f4 {[%clk 0:03:01.3]} 10... Qc7 {[%clk 0:02:50.2]} 11. f5 {[%clk
0:03:00.4]} 11... Bc4 {[%clk 0:02:49.8]} 12. g4 {[%clk 0:03:01]} 12... Nbd7
{[%clk 0:02:31]} 13. g5 {[%clk 0:02:59.3]} 13... Ne8 {[%clk 0:02:27.3]} 14. Bxc4
{[%clk 0:02:32.6]} 14... Qxc4 {[%clk 0:02:26.3]} 15. Be3 {[%clk 0:02:33]} 15...
f6 {[%clk 0:02:13.9]} 16. g6 {[%clk 0:02:23.9]} 16... b5 {[%clk 0:01:28.6]} 17.
Qh5 {[%clk 0:02:17.3]} 17... h6 {[%clk 0:01:17]} 18. Bxh6 {[%clk 0:02:15.2]}
18... gxh6 {[%clk 0:01:17.4]} 19. Qxh6 {[%clk 0:02:12.7]} 19... Rf7 {[%clk
0:01:16.4]} 20. gxf7+ {[%clk 0:02:12.4]} 20... Qxf7 {[%clk 0:01:16.3]} 21. Rg1+
{[%clk 0:02:12.1]} 21... Ng7 {[%clk 0:01:16.1]} 22. Nd5 {[%clk 0:02:09.8]} 22...
Bf8 {[%clk 0:01:08.4]} 23. Rg6 {[%clk 0:02:09.3]} 1-0

[Event "*** Titled Tuesday Blitz"]
[Site "Chess.com"]
[Date "2020.05.12"]
[Round "3"]
[White "Baronessa08"]
[Black "harkerchess"]
[Result "1-0"]
[WhiteElo "2466"]
[BlackElo "1985"]
[TimeControl "180+1"]
[EndTime "10:25:17 PDT"]
[Termination "Baronessa08 won by resignation"]

1. c4 {[%clk 0:03:00.9]} 1... e5 {[%clk 0:02:53.8]} 2. g3 {[%clk 0:03:00.1]}
2... Nc6 {[%clk 0:02:51.7]} 3. Bg2 {[%clk 0:02:58.2]} 3... g6 {[%clk 0:02:49]}
4. Nc3 {[%clk 0:02:56.8]} 4... Bg7 {[%clk 0:02:47.6]} 5. Nf3 {[%clk 0:02:54.6]}
5... d6 {[%clk 0:02:45.8]} 6. O-O {[%clk 0:02:52.1]} 6... f5 {[%clk 0:02:41]} 7.
d3 {[%clk 0:02:50.7]} 7... Nf6 {[%clk 0:02:39.1]} 8. e4 {[%clk 0:02:48]} 8...
O-O {[%clk 0:02:33.8]} 9. exf5 {[%clk 0:02:45.4]} 9... Bxf5 {[%clk 0:02:32.6]}
10. d4 {[%clk 0:02:45.4]} 10... e4 {[%clk 0:02:27.8]} 11. Nh4 {[%clk 0:02:38.9]}
11... Bg4 {[%clk 0:02:23.3]} 12. f3 {[%clk 0:02:28]} 12... exf3 {[%clk
0:02:22.9]} 13. Bxf3 {[%clk 0:02:28.1]} 13... Bxf3 {[%clk 0:02:10.2]} 14. Nxf3
{[%clk 0:02:26]} 14... Ng4 {[%clk 0:02:09.6]} 15. Bf4 {[%clk 0:02:07.9]} 15...
Bh6 {[%clk 0:01:58.8]} 16. Bxh6 {[%clk 0:02:04.7]} 16... Nxh6 {[%clk 0:01:59.7]}
17. d5 {[%clk 0:02:04.5]} 17... Ne7 {[%clk 0:01:58.2]} 18. Nd4 {[%clk
0:01:59.9]} 18... Rxf1+ {[%clk 0:01:51.2]} 19. Qxf1 {[%clk 0:01:58.4]} 19...
Nhf5 {[%clk 0:01:49.7]} 20. Ne6 {[%clk 0:01:56]} 20... Qd7 {[%clk 0:01:49.6]}
21. Ne4 {[%clk 0:01:51.6]} 21... Kh8 {[%clk 0:01:37.4]} 22. g4 {[%clk
0:01:50.9]} 22... c6 {[%clk 0:01:26.3]} 23. gxf5 {[%clk 0:01:50.1]} 23... gxf5
{[%clk 0:01:25.2]} 24. Nf6 {[%clk 0:01:41.2]} 24... Qc8 {[%clk 0:01:23.1]} 25.
Qh3 {[%clk 0:01:39.9]} 1-0

[Event "*** Titled Tuesday Blitz"]
[Site "Chess.com"]
[Date "2020.05.12"]
[Round "3"]
[White "IriBu"]
[Black "vizumatv4hoda"]
[Result "1-0"]
[WhiteElo "2544"]
[BlackElo "2725"]
[TimeControl "180+1"]
[EndTime "10:25:22 PDT"]
[Termination "IriBu won by resignation"]

1. e4 {[%clk 0:03:00.9]} 1... c5 {[%clk 0:02:57.4]} 2. Nf3 {[%clk 0:03:00.6]}
2... g6 {[%clk 0:02:57.6]} 3. d4 {[%clk 0:02:58.2]} 3... Bg7 {[%clk 0:02:58.5]}
4. dxc5 {[%clk 0:02:56.8]} 4... Qa5+ {[%clk 0:02:57.8]} 5. c3 {[%clk 0:02:56.8]}
5... Qxc5 {[%clk 0:02:58.3]} 6. Be3 {[%clk 0:02:54.4]} 6... Qc7 {[%clk
0:02:58.4]} 7. Na3 {[%clk 0:02:53.8]} 7... Nf6 {[%clk 0:02:53.4]} 8. Bd3 {[%clk
0:02:48.2]} 8... O-O {[%clk 0:02:50.9]} 9. O-O {[%clk 0:02:47.4]} 9... d5 {[%clk
0:02:50.6]} 10. e5 {[%clk 0:02:41.1]} 10... Ng4 {[%clk 0:02:48]} 11. Nb5 {[%clk
0:02:33.6]} 11... Qd8 {[%clk 0:02:46.1]} 12. Bf4 {[%clk 0:02:33.1]} 12... a6
{[%clk 0:02:46.4]} 13. Nbd4 {[%clk 0:02:32.2]} 13... Nc6 {[%clk 0:02:46.8]} 14.
Re1 {[%clk 0:02:29.1]} 14... Qb6 {[%clk 0:02:44.8]} 15. h3 {[%clk 0:02:23]}
15... Nh6 {[%clk 0:02:41.3]} 16. Qd2 {[%clk 0:02:14.4]} 16... Nf5 {[%clk
0:02:35.8]} 17. Nxc6 {[%clk 0:02:04.1]} 17... bxc6 {[%clk 0:02:34.7]} 18. g4
{[%clk 0:02:04.3]} 18... f6 {[%clk 0:01:50.9]} 19. gxf5 {[%clk 0:01:57.3]} 19...
fxe5 {[%clk 0:01:49.8]} 20. Bxe5 {[%clk 0:01:56.7]} 20... Bxf5 {[%clk
0:01:48.4]} 21. Bxg7 {[%clk 0:01:55.3]} 21... Kxg7 {[%clk 0:01:47.7]} 22. Rxe7+
{[%clk 0:01:53.4]} 22... Rf7 {[%clk 0:01:46.7]} 23. Rxf7+ {[%clk 0:01:52.1]}
23... Kxf7 {[%clk 0:01:47.6]} 24. Ne5+ {[%clk 0:01:51.6]} 24... Ke6 {[%clk
0:01:31.2]} 25. Re1 {[%clk 0:01:49.5]} 25... Kd6 {[%clk 0:01:21.2]} 26. Qf4
{[%clk 0:01:47.5]} 1-0

[Event "*** Titled Tuesday Blitz"]
[Site "Chess.com"]
[Date "2020.05.12"]
[Round "3"]
[White "Fighter008"]
[Black "BogdanDeac"]
[Result "0-1"]
[WhiteElo "2532"]
[BlackElo "2920"]
[TimeControl "180+1"]
[EndTime "10:25:24 PDT"]
[Termination "BogdanDeac won by resignation"]

1. e4 {[%clk 0:03:00.9]} 1... e6 {[%clk 0:02:58.1]} 2. d4 {[%clk 0:03:00.5]}
2... d5 {[%clk 0:02:58.5]} 3. Nc3 {[%clk 0:03:00.8]} 3... a6 {[%clk 0:02:58.4]}
4. Nf3 {[%clk 0:02:57.7]} 4... Nf6 {[%clk 0:02:57.4]} 5. Bd3 {[%clk 0:02:55.3]}
5... c5 {[%clk 0:02:56.5]} 6. exd5 {[%clk 0:02:52.8]} 6... exd5 {[%clk
0:02:54.5]} 7. O-O {[%clk 0:02:51.2]} 7... c4 {[%clk 0:02:51.3]} 8. Be2 {[%clk
0:02:51.2]} 8... Be7 {[%clk 0:02:50.8]} 9. b3 {[%clk 0:02:51.3]} 9... b5 {[%clk
0:02:45.5]} 10. Bf4 {[%clk 0:02:41.2]} 10... O-O {[%clk 0:02:43]} 11. bxc4
{[%clk 0:02:39.7]} 11... dxc4 {[%clk 0:02:32.2]} 12. d5 {[%clk 0:02:39.3]} 12...
Bb4 {[%clk 0:02:29.7]} 13. Qd4 {[%clk 0:02:32.9]} 13... Bxc3 {[%clk 0:02:27.3]}
14. Qxc3 {[%clk 0:02:31.8]} 14... Nxd5 {[%clk 0:02:27.8]} 15. Qd4 {[%clk
0:02:31.4]} 15... Nc6 {[%clk 0:02:26.8]} 16. Qd2 {[%clk 0:02:31.8]} 16... Nxf4
{[%clk 0:02:17.9]} 17. Qxf4 {[%clk 0:02:32.7]} 17... Re8 {[%clk 0:02:18.2]} 18.
Rfe1 {[%clk 0:02:32]} 18... Qf6 {[%clk 0:02:17.7]} 19. Qxf6 {[%clk 0:02:29.6]}
19... gxf6 {[%clk 0:02:18.6]} 20. a4 {[%clk 0:02:30.5]} 20... Bf5 {[%clk
0:02:17.6]} 21. c3 {[%clk 0:02:29.6]} 21... Rad8 {[%clk 0:02:15.8]} 22. axb5
{[%clk 0:02:28.7]} 22... axb5 {[%clk 0:02:15.1]} 23. h3 {[%clk 0:02:28.8]} 23...
Be4 {[%clk 0:02:13.3]} 24. Nh2 {[%clk 0:02:17.4]} 24... Ne5 {[%clk 0:02:10.5]}
25. f4 {[%clk 0:02:17]} 25... Nd7 {[%clk 0:02:00.2]} 26. Ng4 {[%clk 0:02:16.2]}
26... Kg7 {[%clk 0:01:58]} 27. Nf2 {[%clk 0:02:09]} 27... Nc5 {[%clk 0:01:54.9]}
28. Kf1 {[%clk 0:02:05.3]} 28... Bc6 {[%clk 0:01:49.7]} 29. Red1 {[%clk
0:02:01.8]} 29... Rxd1+ {[%clk 0:01:45.3]} 30. Rxd1 {[%clk 0:02:02.7]} 30...
Bxg2+ {[%clk 0:01:42.9]} 31. Kxg2 {[%clk 0:02:03.6]} 31... Rxe2 {[%clk
0:01:42.7]} 32. Kf1 {[%clk 0:02:01.8]} 32... Re3 {[%clk 0:01:34.7]} 33. Rd5
{[%clk 0:02:01.3]} 33... Nd3 {[%clk 0:01:34.6]} 34. Rxb5 {[%clk 0:01:49.3]}
34... Rf3 {[%clk 0:01:33.7]} 0-1

[Event "*** Titled Tuesday Blitz"]
[Site "Chess.com"]
[Date "2020.05.12"]
[Round "3"]
[White "VitaliyBernadskiy"]
[Black "FranciscodelaF"]
[Result "0-1"]
[WhiteElo "2717"]
[BlackElo "2356"]
[TimeControl "180+1"]
[EndTime "10:25:24 PDT"]
[Termination "FranciscodelaF won by resignation"]

1. e4 {[%clk 0:03:00.9]} 1... e6 {[%clk 0:02:59.3]} 2. d4 {[%clk 0:03:00.6]}
2... d5 {[%clk 0:03:00.2]} 3. Nc3 {[%clk 0:03:01.5]} 3... Bb4 {[%clk 0:02:56.5]}
4. e5 {[%clk 0:03:01.7]} 4... b6 {[%clk 0:02:52.6]} 5. a3 {[%clk 0:03:01.3]}
5... Bxc3+ {[%clk 0:02:52.8]} 6. bxc3 {[%clk 0:03:02.2]} 6... Qd7 {[%clk
0:02:52.4]} 7. h4 {[%clk 0:03:02]} 7... c5 {[%clk 0:02:36.9]} 8. h5 {[%clk
0:03:01.8]} 8... h6 {[%clk 0:02:33.9]} 9. Qg4 {[%clk 0:03:01.5]} 9... Kf8 {[%clk
0:02:30.5]} 10. Rh3 {[%clk 0:03:01.4]} 10... Ne7 {[%clk 0:02:24.3]} 11. Rf3
{[%clk 0:03:01.4]} 11... Nf5 {[%clk 0:02:22.2]} 12. Qf4 {[%clk 0:03:01.1]} 12...
Qe8 {[%clk 0:02:04]} 13. g4 {[%clk 0:02:57.1]} 13... Ne7 {[%clk 0:02:03.6]} 14.
a4 {[%clk 0:02:52]} 14... Ba6 {[%clk 0:02:02.6]} 15. Ba3 {[%clk 0:02:49.2]}
15... Bxf1 {[%clk 0:02:01.7]} 16. Kxf1 {[%clk 0:02:50.1]} 16... Nd7 {[%clk
0:02:00.4]} 17. Ne2 {[%clk 0:02:46.5]} 17... Kg8 {[%clk 0:02:00.4]} 18. Kg2
{[%clk 0:02:41.4]} 18... Rc8 {[%clk 0:01:49.4]} 19. Rh1 {[%clk 0:02:35.3]} 19...
Nf8 {[%clk 0:01:48.4]} 20. Rhh3 {[%clk 0:02:32.9]} 20... Nh7 {[%clk 0:01:47.4]}
21. Rhg3 {[%clk 0:02:32.7]} 21... Ng5 {[%clk 0:01:47.4]} 22. Rd3 {[%clk
0:02:30.4]} 22... Qxa4 {[%clk 0:01:44.5]} 23. Bc1 {[%clk 0:02:20.2]} 23... Qxc2
{[%clk 0:01:43.2]} 24. Rge3 {[%clk 0:02:05.2]} 24... a5 {[%clk 0:01:33.7]} 25.
Rd2 {[%clk 0:02:03.1]} 25... Qa4 {[%clk 0:01:32.6]} 26. Rb2 {[%clk 0:02:01]}
26... Qc6 {[%clk 0:01:31.5]} 27. Qh2 {[%clk 0:01:56.8]} 27... a4 {[%clk
0:01:30.2]} 28. Ra2 {[%clk 0:01:50.4]} 28... b5 {[%clk 0:01:30.1]} 29. dxc5
{[%clk 0:01:49.1]} 29... d4+ {[%clk 0:01:28.8]} 0-1